[Event "*** Titled Tuesday Blitz"]
[Site "Chess.com"]
[Date "2020.11.10"]
[Round "10"]
[White "GothamChess"]
[Black "ViditYT"]
[Result "1-0"]
[WhiteElo "2659"]
[BlackElo "2848"]
[TimeControl "180+1"]
[EndTime "12:02:25 PST"]
[Termination "GothamChess won by resignation"]

1. e4 {[%clk 0:03:00.9]} 1... c5 {[%clk 0:02:58.2]} 2. a3 {[%clk 0:03:00]} 2...
Nc6 {[%clk 0:02:50.4]} 3. b4 {[%clk 0:02:59.9]} 3... cxb4 {[%clk 0:02:50.3]} 4.
axb4 {[%clk 0:03:00.8]} 4... Nxb4 {[%clk 0:02:51]} 5. c3 {[%clk 0:03:01.2]} 5...
Nc6 {[%clk 0:02:50.9]} 6. d4 {[%clk 0:03:02.1]} 6... d6 {[%clk 0:02:47.6]} 7. d5
{[%clk 0:02:51.7]} 7... Ne5 {[%clk 0:02:47.7]} 8. f4 {[%clk 0:02:50.7]} 8... Nd7
{[%clk 0:02:47.9]} 9. Nf3 {[%clk 0:02:46.3]} 9... Qc7 {[%clk 0:02:35.9]} 10. c4
{[%clk 0:02:39.8]} 10... Ngf6 {[%clk 0:02:34.2]} 11. Nc3 {[%clk 0:02:36.9]}
11... g6 {[%clk 0:02:27.9]} 12. Nb5 {[%clk 0:02:24.8]} 12... Qb6 {[%clk
0:01:55.5]} 13. e5 {[%clk 0:02:15.4]} 13... Ng4 {[%clk 0:01:52.5]} 14. Qe2
{[%clk 0:02:09.7]} 14... dxe5 {[%clk 0:01:35.7]} 15. h3 {[%clk 0:01:57.8]} 15...
e4 {[%clk 0:01:28]} 16. hxg4 {[%clk 0:01:57.7]} 16... exf3 {[%clk 0:01:28.2]}
17. gxf3 {[%clk 0:01:48.8]} 17... Bg7 {[%clk 0:01:28.5]} 18. Be3 {[%clk
0:01:39.9]} 18... Qd8 {[%clk 0:01:26.5]} 19. Nd4 {[%clk 0:01:00.9]} 19... Nf6
{[%clk 0:01:19.6]} 20. f5 {[%clk 0:00:53.8]} 20... O-O {[%clk 0:01:12.9]} 21.
Rd1 {[%clk 0:00:43.4]} 21... Qd6 {[%clk 0:01:09.5]} 22. Kf2 {[%clk 0:00:39.6]}
22... Bd7 {[%clk 0:01:07.1]} 23. c5 {[%clk 0:00:31.1]} 23... Qxd5 {[%clk
0:00:47.4]} 24. Ne6 {[%clk 0:00:24]} 24... Nxg4+ {[%clk 0:00:19.4]} 25. Kg1
{[%clk 0:00:03.8]} 25... Qxf5 {[%clk 0:00:16.5]} 26. Nxg7 {[%clk 0:00:04.2]}
26... Qe5 {[%clk 0:00:10.8]} 27. fxg4 {[%clk 0:00:02.1]} 27... Qg3+ {[%clk
0:00:10.9]} 28. Bg2 {[%clk 0:00:02.4]} 28... Bxg4 {[%clk 0:00:11]} 29. Qe1
{[%clk 0:00:01.7]} 29... Qxe1+ {[%clk 0:00:11]} 30. Rxe1 {[%clk 0:00:02.1]}
30... Kxg7 {[%clk 0:00:11.5]} 31. Bh6+ {[%clk 0:00:01.7]} 31... Kg8 {[%clk
0:00:11.1]} 32. Bxf8 {[%clk 0:00:02.6]} 32... Kxf8 {[%clk 0:00:12]} 33. Rh4
{[%clk 0:00:02.8]} 33... h5 {[%clk 0:00:11.3]} 34. Bxb7 {[%clk 0:00:02.7]} 34...
Rb8 {[%clk 0:00:11.3]} 35. c6 {[%clk 0:00:02.7]} 35... f6 {[%clk 0:00:11.5]} 36.
Rxg4 {[%clk 0:00:02.7]} 36... hxg4 {[%clk 0:00:11.7]} 37. c7 {[%clk 0:00:03.3]}
1-0

[Event "*** Titled Tuesday Blitz"]
[Site "Chess.com"]
[Date "2020.11.10"]
[Round "10"]
[White "martynkovaelena"]
[Black "Skat2704"]
[Result "0-1"]
[WhiteElo "2258"]
[BlackElo "2397"]
[TimeControl "180+1"]
[EndTime "12:02:25 PST"]
[Termination "Skat2704 won by resignation"]

1. e4 {[%clk 0:03:00.6]} 1... c6 {[%clk 0:02:59.5]} 2. d4 {[%clk 0:02:59.3]}
2... d5 {[%clk 0:02:59.5]} 3. exd5 {[%clk 0:02:59.7]} 3... cxd5 {[%clk
0:02:59.3]} 4. c4 {[%clk 0:03:00.3]} 4... e6 {[%clk 0:02:58.9]} 5. Nf3 {[%clk
0:03:00.2]} 5... Nc6 {[%clk 0:02:55.9]} 6. Nc3 {[%clk 0:03:00.1]} 6... Nf6
{[%clk 0:02:56]} 7. Bd3 {[%clk 0:02:58.8]} 7... Be7 {[%clk 0:02:55.4]} 8. O-O
{[%clk 0:02:58.7]} 8... O-O {[%clk 0:02:55.5]} 9. Re1 {[%clk 0:02:58.2]} 9... b6
{[%clk 0:02:54.5]} 10. cxd5 {[%clk 0:02:54.9]} 10... exd5 {[%clk 0:02:44.9]} 11.
Bg5 {[%clk 0:02:54.5]} 11... h6 {[%clk 0:02:40.6]} 12. Bh4 {[%clk 0:02:54]}
12... Bg4 {[%clk 0:02:37.8]} 13. Be2 {[%clk 0:02:40.5]} 13... Ne4 {[%clk
0:02:22.4]} 14. Bxe7 {[%clk 0:02:36.3]} 14... Nxe7 {[%clk 0:02:19.6]} 15. Ne5
{[%clk 0:02:32.6]} 15... Bxe2 {[%clk 0:01:52.5]} 16. Qxe2 {[%clk 0:02:29.1]}
16... Nxc3 {[%clk 0:01:37.5]} 17. bxc3 {[%clk 0:02:29]} 17... Nf5 {[%clk
0:01:35.9]} 18. Qg4 {[%clk 0:02:27.3]} 18... Qg5 {[%clk 0:01:27.6]} 19. Qxg5
{[%clk 0:02:22.4]} 19... hxg5 {[%clk 0:01:27.3]} 20. Nf3 {[%clk 0:02:04.9]}
20... f6 {[%clk 0:01:22]} 21. g4 {[%clk 0:02:03.9]} 21... Nd6 {[%clk 0:01:19.5]}
22. Re7 {[%clk 0:02:02.7]} 22... Ne4 {[%clk 0:01:14]} 23. c4 {[%clk 0:01:59.9]}
23... Rfe8 {[%clk 0:01:04]} 24. Rxe8+ {[%clk 0:01:58.8]} 24... Rxe8 {[%clk
0:01:03]} 25. cxd5 {[%clk 0:01:59.3]} 25... Nc3 {[%clk 0:00:57.1]} 26. d6 {[%clk
0:01:50.6]} 26... Rd8 {[%clk 0:00:53.5]} 27. a4 {[%clk 0:01:43.1]} 27... Rxd6
{[%clk 0:00:51.6]} 28. a5 {[%clk 0:01:43.3]} 28... Ne2+ {[%clk 0:00:49.8]} 29.
Kg2 {[%clk 0:01:42.5]} 29... Nxd4 {[%clk 0:00:47.5]} 30. axb6 {[%clk 0:01:33.4]}
30... axb6 {[%clk 0:00:45.5]} 31. Nxd4 {[%clk 0:01:32.2]} 31... Rxd4 {[%clk
0:00:45.1]} 32. Rb1 {[%clk 0:01:32.4]} 32... Rd6 {[%clk 0:00:45.1]} 33. Kf3
{[%clk 0:01:31.9]} 33... Kf7 {[%clk 0:00:45.2]} 34. Ke4 {[%clk 0:01:31.8]} 34...
Ke6 {[%clk 0:00:45.2]} 35. Rb5 {[%clk 0:01:27.8]} 35... Rc6 {[%clk 0:00:44.1]}
36. f3 {[%clk 0:01:24.1]} 36... g6 {[%clk 0:00:41]} 37. h3 {[%clk 0:01:22.9]}
37... f5+ {[%clk 0:00:35.6]} 38. gxf5+ {[%clk 0:01:22.2]} 38... gxf5+ {[%clk
0:00:35.5]} 39. Kd4 {[%clk 0:01:21.6]} 39... Rd6+ {[%clk 0:00:32.5]} 40. Ke3
{[%clk 0:01:20.5]} 40... Kf6 {[%clk 0:00:27]} 41. f4 {[%clk 0:01:18.5]} 41...
Rc6 {[%clk 0:00:23.7]} 42. fxg5+ {[%clk 0:01:06.7]} 42... Kxg5 {[%clk
0:00:23.4]} 43. Kd4 {[%clk 0:01:07.2]} 43... Kf4 {[%clk 0:00:14.6]} 44. h4
{[%clk 0:01:02.3]} 44... Kg4 {[%clk 0:00:12.7]} 45. h5 {[%clk 0:01:01.6]} 45...
f4 {[%clk 0:00:12.3]} 46. Ke4 {[%clk 0:00:54.4]} 46... Re6+ {[%clk 0:00:11.4]}
47. Re5 {[%clk 0:00:49.4]} 47... Rxe5+ {[%clk 0:00:11]} 48. Kxe5 {[%clk
0:00:48.3]} 48... f3 {[%clk 0:00:11.3]} 49. h6 {[%clk 0:00:48.2]} 49... f2
{[%clk 0:00:11.9]} 50. h7 {[%clk 0:00:48.6]} 50... f1=Q {[%clk 0:00:11.9]} 51.
h8=Q {[%clk 0:00:48.9]} 51... Qa1+ {[%clk 0:00:12.4]} 0-1

[Event "*** Titled Tuesday Blitz"]
[Site "Chess.com"]
[Date "2020.11.10"]
[Round "10"]
[White "biostatistician"]
[Black "tdf98pantani"]
[Result "0-1"]
[WhiteElo "2535"]
[BlackElo "2723"]
[TimeControl "180+1"]
[EndTime "12:02:26 PST"]
[Termination "tdf98pantani won on time"]

1. d4 {[%clk 0:02:59.4]} 1... Nf6 {[%clk 0:02:59.2]} 2. Nf3 {[%clk 0:03:00.3]}
2... g6 {[%clk 0:02:59.3]} 3. c4 {[%clk 0:03:00.9]} 3... Bg7 {[%clk 0:02:59.6]}
4. Nc3 {[%clk 0:03:01.8]} 4... O-O {[%clk 0:02:59.8]} 5. e4 {[%clk 0:03:02.4]}
5... d6 {[%clk 0:03:00]} 6. Be2 {[%clk 0:03:03.3]} 6... e5 {[%clk 0:03:00]} 7.
dxe5 {[%clk 0:03:03.5]} 7... dxe5 {[%clk 0:02:59.8]} 8. Qxd8 {[%clk 0:03:03.8]}
8... Rxd8 {[%clk 0:03:00.4]} 9. Bg5 {[%clk 0:03:04.7]} 9... Rf8 {[%clk
0:03:00.9]} 10. Nd5 {[%clk 0:03:05]} 10... Nxd5 {[%clk 0:02:55.4]} 11. cxd5
{[%clk 0:03:05.9]} 11... c6 {[%clk 0:02:55.8]} 12. Bc4 {[%clk 0:03:06.1]} 12...
cxd5 {[%clk 0:02:43.8]} 13. Bxd5 {[%clk 0:03:07]} 13... Nd7 {[%clk 0:02:43.8]}
14. Nd2 {[%clk 0:03:06.7]} 14... Nb6 {[%clk 0:02:39.3]} 15. Bb3 {[%clk
0:03:06.5]} 15... Bd7 {[%clk 0:02:31.2]} 16. Rc1 {[%clk 0:02:58.5]} 16... Bc6
{[%clk 0:02:31]} 17. f3 {[%clk 0:02:55.6]} 17... Rfc8 {[%clk 0:02:24.9]} 18. Kf2
{[%clk 0:02:51.7]} 18... Bf8 {[%clk 0:02:21.6]} 19. Be3 {[%clk 0:02:49]} 19...
Bb5 {[%clk 0:02:15.8]} 20. h4 {[%clk 0:02:47.3]} 20... Na4 {[%clk 0:02:05.5]}
21. Bxa4 {[%clk 0:02:28.8]} 21... Bxa4 {[%clk 0:02:05.5]} 22. Nc4 {[%clk
0:02:18.4]} 22... f6 {[%clk 0:02:04.2]} 23. b3 {[%clk 0:02:16.1]} 23... Bd7
{[%clk 0:02:03.7]} 24. Rhd1 {[%clk 0:02:14.7]} 24... Be6 {[%clk 0:02:03.5]} 25.
Na5 {[%clk 0:02:13.9]} 25... b6 {[%clk 0:01:51.2]} 26. Nc4 {[%clk 0:01:56.6]}
26... Rc6 {[%clk 0:01:49]} 27. Rd3 {[%clk 0:01:27.3]} 27... Rac8 {[%clk
0:01:48.8]} 28. Rcd1 {[%clk 0:01:27.3]} 28... Bxc4 {[%clk 0:01:47.3]} 29. bxc4
{[%clk 0:01:27.5]} 29... Rxc4 {[%clk 0:01:48]} 30. R1d2 {[%clk 0:01:23.2]} 30...
Rc2 {[%clk 0:01:47.3]} 31. Kg3 {[%clk 0:01:17.4]} 31... Rxd2 {[%clk 0:01:45.9]}
32. Rxd2 {[%clk 0:01:17.5]} 32... Rc7 {[%clk 0:01:45.6]} 33. h5 {[%clk
0:01:14.6]} 33... Kf7 {[%clk 0:01:45.6]} 34. Kg4 {[%clk 0:01:11.7]} 34... Be7
{[%clk 0:01:41.7]} 35. g3 {[%clk 0:01:06.3]} 35... Ke6 {[%clk 0:01:41.4]} 36. f4
{[%clk 0:00:34.4]} 36... f5+ {[%clk 0:01:38.5]} 37. Kf3 {[%clk 0:00:33.9]} 37...
Rc3 {[%clk 0:01:35.7]} 38. hxg6 {[%clk 0:00:30.3]} 38... hxg6 {[%clk 0:01:33.8]}
39. exf5+ {[%clk 0:00:28.9]} 39... gxf5 {[%clk 0:01:33.3]} 40. Ke2 {[%clk
0:00:22.7]} 40... e4 {[%clk 0:01:28.9]} 41. Kf2 {[%clk 0:00:15.9]} 41... Ra3
{[%clk 0:01:24.4]} 42. Bd4 {[%clk 0:00:14.4]} 42... b5 {[%clk 0:01:20.4]} 43.
Rc2 {[%clk 0:00:08.8]} 43... Kd5 {[%clk 0:01:18.8]} 44. Be5 {[%clk 0:00:08.1]}
44... Bc5+ {[%clk 0:01:18.1]} 45. Kg2 {[%clk 0:00:08.2]} 45... a5 {[%clk
0:01:18.5]} 46. Rd2+ {[%clk 0:00:08.4]} 46... Rd3 {[%clk 0:01:18.6]} 47. Rc2
{[%clk 0:00:08.2]} 47... a4 {[%clk 0:01:18.3]} 48. Rb2 {[%clk 0:00:07.6]} 48...
b4 {[%clk 0:01:18.2]} 49. Rc2 {[%clk 0:00:07.9]} 49... b3 {[%clk 0:01:17.9]} 50.
axb3 {[%clk 0:00:08.8]} 50... axb3 {[%clk 0:01:18.5]} 51. Rb2 {[%clk 0:00:09.7]}
51... Ba3 {[%clk 0:01:18.3]} 52. Re2 {[%clk 0:00:08.5]} 52... Bc1 {[%clk
0:01:14.8]} 53. Kh3 {[%clk 0:00:07.3]} 53... Rd2 {[%clk 0:01:12.6]} 0-1

[Event "*** Titled Tuesday Blitz"]
[Site "Chess.com"]
[Date "2020.11.10"]
[Round "10"]
[White "Gulkov_Igor"]
[Black "nicoderboss24"]
[Result "1-0"]
[WhiteElo "2459"]
[BlackElo "2254"]
[TimeControl "180+1"]
[EndTime "12:02:27 PST"]
[Termination "Gulkov_Igor won by resignation"]

1. Nf3 {[%clk 0:03:00.9]} 1... d5 {[%clk 0:02:44.2]} 2. d4 {[%clk 0:03:00.1]}
2... e6 {[%clk 0:02:42.2]} 3. c4 {[%clk 0:03:00.2]} 3... c5 {[%clk 0:02:41.5]}
4. cxd5 {[%clk 0:02:59.9]} 4... exd5 {[%clk 0:02:42.4]} 5. g3 {[%clk 0:02:59.7]}
5... Nc6 {[%clk 0:02:42.4]} 6. Bg2 {[%clk 0:02:59.8]} 6... c4 {[%clk 0:02:41.9]}
7. O-O {[%clk 0:02:59.2]} 7... Bb4 {[%clk 0:02:39.3]} 8. Nc3 {[%clk 0:02:41.1]}
8... Nge7 {[%clk 0:02:32.9]} 9. e4 {[%clk 0:02:35.7]} 9... dxe4 {[%clk
0:02:32.3]} 10. Nxe4 {[%clk 0:02:34.5]} 10... O-O {[%clk 0:02:30.3]} 11. Be3
{[%clk 0:02:18]} 11... Nd5 {[%clk 0:02:27]} 12. Qc2 {[%clk 0:02:15.9]} 12... Bf5
{[%clk 0:02:25.5]} 13. Nh4 {[%clk 0:02:14.2]} 13... Bxe4 {[%clk 0:02:09.4]} 14.
Bxe4 {[%clk 0:02:13.3]} 14... g6 {[%clk 0:02:08]} 15. Qxc4 {[%clk 0:02:11.6]}
15... Nxe3 {[%clk 0:01:53.5]} 16. fxe3 {[%clk 0:02:10.5]} 16... Qe7 {[%clk
0:01:46.6]} 17. Bxc6 {[%clk 0:01:58.2]} 17... bxc6 {[%clk 0:01:47.5]} 18. Ng2
{[%clk 0:01:57.1]} 18... c5 {[%clk 0:01:17.5]} 19. a3 {[%clk 0:01:52]} 19... Bd2
{[%clk 0:01:14.4]} 20. Qd3 {[%clk 0:01:35.1]} 20... Ba5 {[%clk 0:01:08.3]} 21.
dxc5 {[%clk 0:01:34.7]} 21... Rad8 {[%clk 0:01:05.7]} 22. Qb5 {[%clk 0:01:23.6]}
22... Bd2 {[%clk 0:01:03]} 23. b4 {[%clk 0:01:04.5]} 23... Bxe3+ {[%clk
0:01:01.8]} 24. Kh1 {[%clk 0:01:05]} 24... Rd2 {[%clk 0:00:58.3]} 25. Rae1
{[%clk 0:01:03.3]} 25... Qe4 {[%clk 0:00:50.3]} 26. Re2 {[%clk 0:01:03.1]} 26...
Qd5 {[%clk 0:00:23.2]} 27. Rxd2 {[%clk 0:00:54.9]} 27... Qxd2 {[%clk 0:00:20.4]}
28. Qc4 {[%clk 0:00:52.4]} 28... Bg5 {[%clk 0:00:15.1]} 29. c6 {[%clk
0:00:51.9]} 29... Qd6 {[%clk 0:00:09.3]} 30. a4 {[%clk 0:00:49.5]} 30... Bd8
{[%clk 0:00:05.6]} 31. b5 {[%clk 0:00:49.1]} 31... Bc7 {[%clk 0:00:05.6]} 32.
Nf4 {[%clk 0:00:46]} 32... h5 {[%clk 0:00:06]} 33. Nd5 {[%clk 0:00:45.5]} 33...
Bb8 {[%clk 0:00:05.3]} 34. c7 {[%clk 0:00:44.8]} 34... h4 {[%clk 0:00:05.6]} 35.
cxb8=Q {[%clk 0:00:43.7]} 35... Rxb8 {[%clk 0:00:06.2]} 36. Qc6 {[%clk
0:00:41.6]} 36... Qe5 {[%clk 0:00:05.3]} 37. Nf4 {[%clk 0:00:40.5]} 37... hxg3
{[%clk 0:00:04.8]} 38. hxg3 {[%clk 0:00:40.4]} 38... Kg7 {[%clk 0:00:05.2]} 39.
Qf3 {[%clk 0:00:39.6]} 39... Rh8+ {[%clk 0:00:06.1]} 40. Kg2 {[%clk 0:00:39.6]}
40... Qb2+ {[%clk 0:00:06.7]} 41. Rf2 {[%clk 0:00:39.6]} 41... Qc1 {[%clk
0:00:06.7]} 42. Rf1 {[%clk 0:00:39.3]} 42... Qb2+ {[%clk 0:00:06.8]} 43. Ne2
{[%clk 0:00:39.3]} 43... Qa2 {[%clk 0:00:06.1]} 44. Qc3+ {[%clk 0:00:36.8]}
44... Kg8 {[%clk 0:00:05.6]} 45. Qf3 {[%clk 0:00:37.2]} 45... Kg7 {[%clk
0:00:05.8]} 46. g4 {[%clk 0:00:37.7]} 46... Qd5 {[%clk 0:00:04.3]} 47. Qxd5
{[%clk 0:00:37.1]} 1-0

[Event "*** Titled Tuesday Blitz"]
[Site "Chess.com"]
[Date "2020.11.10"]
[Round "10"]
[White "SaqoChess_Twitch"]
[Black "Pavlov_Sergey"]
[Result "0-1"]
[WhiteElo "2450"]
[BlackElo "2604"]
[TimeControl "180+1"]
[EndTime "12:02:29 PST"]
[Termination "Pavlov_Sergey won by resignation"]

1. d4 {[%clk 0:02:55.1]} 1... Nf6 {[%clk 0:02:59.7]} 2. c4 {[%clk 0:02:55.6]}
2... e6 {[%clk 0:03:00]} 3. Nc3 {[%clk 0:02:56.2]} 3... Bb4 {[%clk 0:03:00.3]}
4. a3 {[%clk 0:02:57]} 4... Bxc3+ {[%clk 0:02:59.7]} 5. bxc3 {[%clk 0:02:57.9]}
5... c6 {[%clk 0:02:59.3]} 6. e3 {[%clk 0:02:58.5]} 6... d5 {[%clk 0:02:58.8]}
7. Bd3 {[%clk 0:02:58]} 7... e5 {[%clk 0:02:58.4]} 8. dxe5 {[%clk 0:02:48.3]}
8... dxc4 {[%clk 0:02:57.9]} 9. exf6 {[%clk 0:02:45.1]} 9... cxd3 {[%clk
0:02:47.7]} 10. fxg7 {[%clk 0:02:43.8]} 10... Rg8 {[%clk 0:02:48.2]} 11. Qh5
{[%clk 0:02:42.5]} 11... Rxg7 {[%clk 0:02:47.9]} 12. Qe5+ {[%clk 0:02:42.1]}
12... Kf8 {[%clk 0:02:48.3]} 13. Nf3 {[%clk 0:02:35.7]} 13... Rxg2 {[%clk
0:02:06.5]} 14. a4 {[%clk 0:02:17]} 14... Kg8 {[%clk 0:01:54.9]} 15. c4 {[%clk
0:02:12.9]} 15... Nd7 {[%clk 0:01:42.2]} 16. Qd4 {[%clk 0:02:09.1]} 16... Qf6
{[%clk 0:01:40.8]} 17. Bb2 {[%clk 0:01:47.7]} 17... Qxd4 {[%clk 0:01:40.3]} 18.
Bxd4 {[%clk 0:01:48.6]} 18... c5 {[%clk 0:01:40.1]} 19. Bc3 {[%clk 0:01:48.2]}
19... Nb6 {[%clk 0:01:40.2]} 20. Ne5 {[%clk 0:01:32.5]} 20... Bf5 {[%clk
0:01:40.3]} 21. a5 {[%clk 0:01:32]} 21... Nd7 {[%clk 0:01:38.8]} 22. Nxd7 {[%clk
0:01:26.2]} 22... Bxd7 {[%clk 0:01:39.1]} 23. Kd2 {[%clk 0:01:14.3]} 23... Rxf2+
{[%clk 0:01:27.9]} 24. Kxd3 {[%clk 0:01:13.6]} 24... Rd8 {[%clk 0:01:16.2]} 25.
Rag1+ {[%clk 0:01:07.5]} 25... Kf8 {[%clk 0:01:15.9]} 26. Bg7+ {[%clk 0:01:07]}
26... Ke7 {[%clk 0:01:14.6]} 27. Kc3 {[%clk 0:01:07.5]} 27... Bf5 {[%clk
0:01:10.9]} 28. Rd1 {[%clk 0:01:05]} 28... Rc2+ {[%clk 0:01:03.6]} 29. Kb3
{[%clk 0:01:04.9]} 29... Rxd1 {[%clk 0:00:58.4]} 30. Rxd1 {[%clk 0:01:05.8]}
30... Rg2 {[%clk 0:00:54.4]} 31. Rd5 {[%clk 0:01:00.1]} 31... Be6 {[%clk
0:00:49]} 32. Rxc5 {[%clk 0:00:58.1]} 32... Rxg7 {[%clk 0:00:49.1]} 33. Rc7+
{[%clk 0:00:58.7]} 33... Kd6 {[%clk 0:00:49]} 34. Rxb7 {[%clk 0:00:59.6]} 34...
a6 {[%clk 0:00:43]} 35. Rb6+ {[%clk 0:00:59.6]} 35... Kc5 {[%clk 0:00:42.9]} 36.
Kc3 {[%clk 0:00:53.2]} 36... Bxc4 {[%clk 0:00:41.3]} 37. Rb7 {[%clk 0:00:52.5]}
37... Bb5 {[%clk 0:00:40.1]} 38. Rc7+ {[%clk 0:00:50.7]} 38... Kd6 {[%clk
0:00:40.2]} 39. Ra7 {[%clk 0:00:50.9]} 39... h5 {[%clk 0:00:39.4]} 40. Kd4
{[%clk 0:00:51.1]} 40... h4 {[%clk 0:00:39.1]} 41. e4 {[%clk 0:00:51.3]} 41...
h3 {[%clk 0:00:38.7]} 42. Ra8 {[%clk 0:00:51.7]} 42... Ke6 {[%clk 0:00:38.2]}
43. Rh8 {[%clk 0:00:51.9]} 43... Bf1 {[%clk 0:00:36.8]} 44. Ke3 {[%clk
0:00:51.8]} 44... Rg5 {[%clk 0:00:36.3]} 45. Kf2 {[%clk 0:00:51.4]} 45... Bg2
{[%clk 0:00:35]} 46. Rh6+ {[%clk 0:00:51.1]} 46... Rg6 {[%clk 0:00:35.4]} 47.
Rh5 {[%clk 0:00:51.3]} 47... Rf6+ {[%clk 0:00:35.2]} 48. Ke3 {[%clk 0:00:50.7]}
48... Rf3+ {[%clk 0:00:34.6]} 49. Kd4 {[%clk 0:00:51.2]} 49... Rf4 {[%clk
0:00:34.8]} 50. Rh6+ {[%clk 0:00:51.2]} 50... f6 {[%clk 0:00:35.2]} 51. Kd3
{[%clk 0:00:50.4]} 51... Rxe4 {[%clk 0:00:33]} 52. Rh8 {[%clk 0:00:51.3]} 52...
Ra4 {[%clk 0:00:32.2]} 53. Re8+ {[%clk 0:00:51.6]} 53... Kf5 {[%clk 0:00:32.4]}
54. Ke3 {[%clk 0:00:49.5]} 54... Rxa5 {[%clk 0:00:32.3]} 55. Kf2 {[%clk
0:00:50.4]} 55... Ra2+ {[%clk 0:00:32]} 56. Kg3 {[%clk 0:00:50.8]} 56... Ra3+
{[%clk 0:00:32.5]} 57. Kh4 {[%clk 0:00:51]} 57... Rf3 {[%clk 0:00:31.5]} 58. Rg8
{[%clk 0:00:47.2]} 58... Rf4+ {[%clk 0:00:30.6]} 59. Kh5 {[%clk 0:00:47.5]}
59... Bf3+ {[%clk 0:00:31.1]} 60. Kh6 {[%clk 0:00:48.1]} 60... Rh4+ {[%clk
0:00:31.7]} 61. Kg7 {[%clk 0:00:48]} 61... Rg4+ {[%clk 0:00:32.2]} 62. Kh7
{[%clk 0:00:46.2]} 62... Rxg8 {[%clk 0:00:33.1]} 63. Kxg8 {[%clk 0:00:47.1]}
63... a5 {[%clk 0:00:32.8]} 0-1

[Event "*** Titled Tuesday Blitz"]
[Site "Chess.com"]
[Date "2020.11.10"]
[Round "10"]
[White "AliKa2810"]
[Black "Andrii_Prydun"]
[Result "1-0"]
[WhiteElo "2570"]
[BlackElo "2376"]
[TimeControl "180+1"]
[EndTime "12:02:29 PST"]
[Termination "AliKa2810 won by checkmate"]

1. d4 {[%clk 0:03:00.9]} 1... d5 {[%clk 0:03:00.4]} 2. c4 {[%clk 0:03:00.3]}
2... c6 {[%clk 0:03:00.9]} 3. cxd5 {[%clk 0:02:59.9]} 3... cxd5 {[%clk
0:03:01.8]} 4. Bg5 {[%clk 0:03:00.1]} 4... Nf6 {[%clk 0:03:02.5]} 5. Bxf6 {[%clk
0:02:59.5]} 5... gxf6 {[%clk 0:03:03.3]} 6. Nc3 {[%clk 0:03:00.1]} 6... e6
{[%clk 0:03:01.1]} 7. Nf3 {[%clk 0:02:56.5]} 7... Nc6 {[%clk 0:02:59.5]} 8. e3
{[%clk 0:02:56.3]} 8... Rg8 {[%clk 0:02:58.6]} 9. g3 {[%clk 0:02:55.9]} 9... Qb6
{[%clk 0:02:56.9]} 10. Qd2 {[%clk 0:02:54.2]} 10... Bd7 {[%clk 0:02:48.9]} 11.
Bd3 {[%clk 0:02:53]} 11... f5 {[%clk 0:02:46.4]} 12. Rc1 {[%clk 0:02:51.5]}
12... Na5 {[%clk 0:02:39.9]} 13. O-O {[%clk 0:02:36.4]} 13... f6 {[%clk
0:02:28.8]} 14. Bxf5 {[%clk 0:02:29]} 14... exf5 {[%clk 0:02:19.8]} 15. Nxd5
{[%clk 0:02:28.6]} 15... Qd6 {[%clk 0:01:39.9]} 16. Qxa5 {[%clk 0:02:16.8]}
16... Rd8 {[%clk 0:01:32.2]} 17. Nc7+ {[%clk 0:01:56.9]} 17... Kf7 {[%clk
0:01:30.2]} 18. Nh4 {[%clk 0:01:51.5]} 18... Rg5 {[%clk 0:01:20.6]} 19. f4
{[%clk 0:01:43]} 19... Rh5 {[%clk 0:01:07.8]} 20. Qd5+ {[%clk 0:01:28.7]} 20...
Qxd5 {[%clk 0:01:07.2]} 21. Nxd5 {[%clk 0:01:29.6]} 21... Bc6 {[%clk 0:01:06.8]}
22. Nc3 {[%clk 0:01:28.4]} 22... Bb4 {[%clk 0:01:03]} 23. Kf2 {[%clk 0:01:27.5]}
23... a5 {[%clk 0:00:54.8]} 24. a3 {[%clk 0:01:26.1]} 24... Be7 {[%clk 0:00:53]}
25. Rfd1 {[%clk 0:01:23.8]} 25... Bd7 {[%clk 0:00:46.1]} 26. d5 {[%clk
0:01:14.5]} 26... Bd6 {[%clk 0:00:45.3]} 27. Ne2 {[%clk 0:01:13.4]} 27... a4
{[%clk 0:00:25.5]} 28. Nd4 {[%clk 0:01:12.2]} 28... Ra8 {[%clk 0:00:20.7]} 29.
Ndxf5 {[%clk 0:00:57.6]} 29... Bxf5 {[%clk 0:00:19.5]} 30. Nxf5 {[%clk
0:00:57.6]} 30... Rxf5 {[%clk 0:00:20.2]} 31. g4 {[%clk 0:00:57.6]} 31... Rxf4+
{[%clk 0:00:17.4]} 32. exf4 {[%clk 0:00:57.4]} 32... Bxf4 {[%clk 0:00:17.9]} 33.
Rc4 {[%clk 0:00:56.3]} 33... Bxh2 {[%clk 0:00:17.6]} 34. d6 {[%clk 0:00:54.6]}
34... Ke8 {[%clk 0:00:13.4]} 35. Rc7 {[%clk 0:00:52.6]} 35... Rd8 {[%clk
0:00:11.4]} 36. Rxh7 {[%clk 0:00:48.1]} 36... Rxd6 {[%clk 0:00:08.4]} 37. Rxd6
{[%clk 0:00:47.5]} 37... Bxd6 {[%clk 0:00:08.3]} 38. Rxb7 {[%clk 0:00:48]} 38...
Be5 {[%clk 0:00:06.7]} 39. Kf3 {[%clk 0:00:48.3]} 39... Kd8 {[%clk 0:00:06.2]}
40. Ke4 {[%clk 0:00:48.5]} 40... Kc8 {[%clk 0:00:06.8]} 41. Rb4 {[%clk
0:00:45.7]} 41... Kd7 {[%clk 0:00:04.7]} 42. g5 {[%clk 0:00:45.1]} 42... Ke6
{[%clk 0:00:03.6]} 43. Rb6+ {[%clk 0:00:41.4]} 43... Kf7 {[%clk 0:00:03.2]} 44.
Kf5 {[%clk 0:00:41.1]} 44... Bd4 {[%clk 0:00:01]} 45. Rb7+ {[%clk 0:00:39.8]}
45... Kf8 {[%clk 0:00:01.6]} 46. gxf6 {[%clk 0:00:38.4]} 46... Bc5 {[%clk
0:00:02.2]} 47. Ke6 {[%clk 0:00:36.2]} 47... Ke8 {[%clk 0:00:01.3]} 48. Rb8#
{[%clk 0:00:35.5]} 1-0